bitfinex/quotes_SOLUSD_20251118
["timestamp","ask_amount","ask_price","bid_price","bid_amount"]
[1763486540885,10.47353381,140.67,140.62,10.45353381]
[1763486541059,18.12096,140.66,140.63,9.79353381]
[1763486541258,10.57353381,140.69,140.65,9.79353381]
[1763486541458,10.57353381,140.69,140.67,9.79353381]
[1763486541666,9.79353381,140.72,140.67,9.79353381]
[1763486541852,9.79353381,140.72,140.67,10.45353381]
[1763486542062,0.68,140.72,140.68,9.79353381]
[1763486542268,18.80096,140.72,140.68,9.79353381]
[1763486542478,10.47353381,140.72,140.67,10.45353381]
[1763486542973,0.68,140.71,140.66,9.79353381]
[1763486543174,0.68,140.71,140.67,4.24]
[1763486543565,0.68,140.71,140.66,9.79353381]
[1763486543776,27.91449381,140.72,140.67,14.69353381]
[1763486544082,28.59449381,140.72,140.67,14.69353381]
[1763486544376,27.91449381,140.72,140.67,14.69353381]
[1763486544676,0.68,140.71,140.67,14.69353381]
[1763486544879,18.80096,140.72,140.68,10.45353381]
[1763486545066,18.12096,140.72,140.67,14.69353381]
[1763486545382,9.79353381,140.7,140.65,9.79353381]
[1763486545685,0.68,140.71,140.63,0.66]
[1763486545686,0.68,140.71,140.64,14.03353381]
[1763486545866,18.12096,140.72,140.65,9.79353381]
[1763486545867,10.47353381,140.7,140.65,9.79353381]
[1763486546256,10.47353381,140.7,140.65,10.45353381]
[1763486546469,10.47353381,140.7,140.64,4.24]
[1763486546470,0.68,140.7,140.66,9.79353381]
[1763486546664,18.12096,140.72,140.68,9.79353381]
[1763486546853,0.68,140.73,140.7,9.79353381]
[1763486547054,0.68,140.75,140.7,14.03353381]
[1763486547257,0.68,140.75,140.7,14.69353381]
[1763486548182,28.59449381,140.75,140.7,14.69353381]
[1763486548385,9.79353381,140.73,140.68,9.79353381]
[1763486548560,9.79353381,140.72,140.68,4.24]
[1763486548760,9.79353381,140.71,140.68,4.24]
[1763486549079,9.79353381,140.71,140.66,0.66]
[1763486549080,9.79353381,140.71,140.67,4.24]
[1763486549274,0.68,140.71,140.67,14.03353381]
[1763486549468,0.68,140.7,140.67,4.24]
[1763486549658,18.12096,140.71,140.67,4.9]
[1763486549855,18.12096,140.71,140.68,10.45353381]
[1763486550284,18.12096,140.71,140.69,0.66]
[1763486550463,0.68,140.73,140.68,10.45353381]
[1763486550781,28.59449381,140.73,140.68,10.45353381]
[1763486551155,0.68,140.72,140.68,10.45353381]
[1763486551782,0.68,140.72,140.69,4.24]
[1763486551964,10.47353381,140.72,140.67,9.79353381]
[1763486552170,10.47353381,140.72,140.68,4.24]
[1763486552485,0.68,140.71,140.68,4.24]
[1763486553690,27.91449381,140.7,140.65,9.79353381]
[1763486553874,27.91449381,140.7,140.66,4.24]
[1763486554177,28.59449381,140.7,140.66,4.24]
[1763486554387,0.68,140.69,140.66,4.24]
[1763486554774,27.91449381,140.7,140.66,4.24]
[1763486555167,18.12096,140.68,140.66,14.69353381]
[1763486555781,18.12096,140.68,140.66,14.03353381]
[1763486556285,18.12096,140.69,140.66,4.24]
[1763486556886,27.91449381,140.69,140.64,10.45353381]
[1763486557063,0.68,140.68,140.65,4.24]
[1763486557276,10.47353381,140.68,140.63,4.24]
[1763486557476,9.79353381,140.65,140.59,0.76]
[1763486557783,9.79353381,140.64,140.59,14.13353381]
[1763486558095,9.79353381,140.64,140.59,14.79353381]
[1763486558298,0.68,140.63,140.59,14.79353381]
[1763486558470,0.68,140.63,140.59,4.34]
[1763486558671,28.59449381,140.63,140.59,4.34]
[1763486559278,27.91449381,140.63,140.59,0.1]
[1763486559488,0.68,140.62,140.59,4.34]
[1763486559688,18.12096,140.6,140.59,4.34]
[1763486559888,18.12096,140.6,140.59,0.1]
[1763486560089,18.80096,140.6,140.59,0.1]
[1763486560468,15.67017229,140.6,140.59,0.1]
[1763486560669,15.67017229,140.6,140.58,0.1]
[1763486560670,9.78882769,140.59,140.58,0.1]
[1763486560869,25.45893071,140.59,140.58,0.1]
[1763486561103,30.14728771,140.59,140.57,0.1]
[1763486561280,18.12096,140.55,140.51,4.34]
[1763486561597,27.91449381,140.55,140.51,4.34]
[1763486561775,28.59449381,140.55,140.51,4.34]
[1763486563885,27.91449381,140.53,140.51,0.1]
[1763486564097,24.77478426,140.53,140.51,0.1]
[1763486564299,15.67125045,140.53,140.51,0.1]
[1763486564473,25.46478426,140.53,140.51,0.1]
[1763486564674,29.70478426,140.53,140.51,0.1]
[1763486565490,34.38026486,140.53,140.51,0.1]
[1763486566299,29.70478426,140.53,140.51,0.1]
[1763486566808,34.36334863,140.53,140.51,0.1]
[1763486567100,24.56981482,140.53,140.51,0.1]
[1763486567272,34.36334863,140.53,140.51,0.1]
[1763486568902,9.78882769,140.52,140.51,0.1]
[1763486569095,39.51831807,140.52,140.51,0.1]
[1763486569485,19.93125045,140.52,140.51,0.1]
[1763486569692,29.72478426,140.52,140.51,0.1]
[1763486575804,39.61831807,140.52,140.51,0.1]
[1763486580600,39.57895126,140.52,140.51,0.1]
[1763486581297,38.88895126,140.52,140.51,0.1]
[1763486581613,39.57817287,140.52,140.51,0.1]
[1763486582313,39.57601612,140.52,140.51,0.1]
[1763486586918,18.12096,140.49,140.43,0.7]
[1763486587125,27.91449381,140.45,140.43,0.7]
[1763486587421,9.79353381,140.44,140.43,0.7]
[1763486589217,27.91449381,140.45,140.43,0.7]
[1763486589621,18.12096,140.45,140.43,0.7]
[1763486590032,27.91449381,140.45,140.43,0.7]
[1763486590253,9.79353381,140.44,140.42,0.1]
[1763486590405,9.79353381,140.44,140.42,0.8]
[1763486590606,9.79353381,140.43,140.42,0.8]
[1763486590807,9.79353381,140.43,140.42,0.1]
[1763486591020,27.91449381,140.43,140.42,0.1]
[1763486591215,27.91449381,140.43,140.42,0.8]
[1763486592415,27.91449381,140.43,140.42,0.1]
[1763486592621,27.91449381,140.43,140.42,0.78]
[1763486593211,27.91449381,140.43,140.42,0.1]
[1763486594234,14.05353381,140.43,140.42,0.1]
[1763486594444,18.12096,140.39,140.36,0.1]
[1763486594651,19.5823615,140.37,140.36,0.1]
[1763486595147,24.73800829,140.37,140.36,0.1]
[1763486595345,20.2623615,140.37,140.36,0.1]
[1763486595523,12.65200381,140.37,140.36,0.78]
[1763486595718,2.85847,140.37,140.36,0.78]
[1763486595923,18.12096,140.38,140.36,0.78]
[1763486596148,9.79353381,140.4,140.36,0.78]
[1763486596351,9.79353381,140.41,140.36,10.57353381]
[1763486596555,4.26,140.43,140.37,9.79353381]
[1763486596556,9.79353381,140.42,140.37,9.79353381]
[1763486596758,18.12096,140.4,140.37,0.68]
[1763486597056,18.12096,140.4,140.38,0.68]
[1763486597057,27.91449381,140.4,140.38,0.68]
[1763486597426,9.79353381,140.4,140.38,0.68]
[1763486598216,9.79353381,140.4,140.36,0.1]
[1763486598419,18.12096,140.37,140.36,0.1]
[1763486598947,18.12096,140.38,140.36,0.78]
[1763486599151,18.12096,140.38,140.36,6.65956892]
[1763486599357,10.13956892,140.43,140.37,5.87956892]
[1763486599547,10.54322099,140.43,140.38,5.87956892]
[1763486599750,10.54322099,140.43,140.38,6.55956892]
[1763486599952,18.12096,140.4,140.39,0.68]
[1763486601422,18.12096,140.41,140.39,0.68]
[1763486601619,10.13956892,140.44,140.39,0.68]
[1763486601833,18.12096,140.41,140.39,0.68]
[1763486602240,5.88374637,140.46,140.4,5.87956892]
[1763486602572,5.88374637,140.5,140.45,5.87956892]
[1763486602732,5.88374637,140.5,140.41,4.26]
[1763486602733,5.87956892,140.51,140.48,5.87956892]
[1763486602930,5.87956892,140.51,140.42,9.78882769]
[1763486602931,5.87956892,140.51,140.49,5.87956892]
[1763486603350,18.12096,140.51,140.49,0.63]
[1763486604432,18.12096,140.51,140.48,5.87956892]
[1763486604639,18.12096,140.51,140.48,0.63]
[1763486604831,18.12096,140.51,140.49,0.63]
[1763486605074,18.12096,140.51,140.47,6.50956892]
[1763486605360,18.12096,140.51,140.46,5.87956892]
[1763486605361,5.05743395,140.5,140.46,5.87956892]
[1763486605855,5.05743395,140.5,140.46,6.50956892]
[1763486606462,18.12096,140.48,140.45,4.26]
[1763486606643,18.12096,140.47,140.45,4.26]
[1763486606975,18.12096,140.47,140.45,10.76956892]
[1763486608255,6.56956892,140.46,140.4,0.63]
[1763486608435,18.12096,140.48,140.41,0.63]
[1763486608636,5.06159864,140.47,140.43,5.87956892]
[1763486608834,5.06159864,140.47,140.43,6.50956892]
[1763486609031,5.06159864,140.47,140.43,0.63]
[1763486609974,11.63116756,140.47,140.42,0.63]
[1763486610152,24.00052892,140.48,140.43,0.63]
[1763486610342,18.12096,140.48,140.43,6.50956892]
[1763486610539,5.87956892,140.49,140.43,6.50956892]
[1763486610761,18.12096,140.46,140.43,6.50956892]
[1763486611068,24.00052892,140.47,140.44,0.63]
[1763486611666,18.12096,140.47,140.44,0.63]
[1763486612058,5.88374637,140.52,140.45,5.87956892]
[1763486612267,10.96048328,140.51,140.45,5.87956892]
[1763486612472,18.12096,140.5,140.46,0.63]
[1763486612666,18.12096,140.5,140.46,6.50956892]
[1763486612841,18.12096,140.51,140.47,5.87956892]
[1763486613162,5.87956892,140.52,140.47,0.63]
[1763486613346,5.07868918,140.51,140.48,0.63]
[1763486613538,5.87956892,140.51,140.48,0.63]
[1763486613740,5.87956892,140.51,140.45,5.87956892]
[1763486613741,5.87956892,140.51,140.47,0.63]
[1763486614767,10.95648463,140.5,140.46,0.63]
[1763486614952,10.58113374,140.5,140.46,0.63]
[1763486615156,5.87956892,140.5,140.46,0.63]
[1763486615563,10.58097925,140.5,140.46,0.63]
[1763486615941,5.87956892,140.5,140.46,0.63]
[1763486616143,28.26052892,140.51,140.46,0.63]
[1763486616342,18.12096,140.51,140.47,5.87956892]
[1763486616674,18.12096,140.51,140.48,0.63]
[1763486617442,5.87956892,140.54,140.48,6.50956892]
[1763486617866,5.87956892,140.54,140.49,6.50956892]
[1763486618259,5.87956892,140.54,140.5,0.63]
[1763486620287,5.87956892,140.55,140.5,0.63]
[1763486620449,5.87956892,140.54,140.5,0.63]
[1763486620644,5.87956892,140.53,140.5,0.63]
[1763486620839,5.87956892,140.52,140.5,0.63]
[1763486621043,24.00052892,140.53,140.5,0.63]
[1763486621252,5.87956892,140.52,140.47,6.50956892]
[1763486621449,6.56956892,140.52,140.47,0.63]
[1763486621871,24.00052892,140.53,140.47,6.50956892]
[1763486622056,24.00052892,140.53,140.48,0.63]
[1763486622674,5.87956892,140.52,140.48,0.63]
[1763486624066,5.87956892,140.51,140.48,0.63]
[1763486624669,5.87956892,140.51,140.46,0.63]
[1763486624867,6.54956892,140.51,140.46,0.63]
[1763486625063,5.87956892,140.49,140.46,0.63]
[1763486627291,5.87956892,140.48,140.37,0.71240293]
[1763486627471,5.87956892,140.48,140.44,0.63]
[1763486628709,6.54956892,140.47,140.4,0.63]
[1763486628880,5.87956892,140.43,140.39,0.63]
[1763486629784,5.87956892,140.42,140.39,0.63]
[1763486629984,5.87956892,140.43,140.39,0.63]
[1763486631294,5.87956892,140.42,140.39,0.63]
[1763486632792,5.87956892,140.42,140.36,10.23956892]
[1763486632972,5.87956892,140.42,140.37,0.63]
[1763486634292,5.87956892,140.41,140.37,0.63]
[1763486635780,5.87956892,140.42,140.37,6.50956892]
[1763486636183,5.87956892,140.42,140.38,0.63]
[1763486637691,5.87956892,140.41,140.38,0.63]
[1763486638698,5.87956892,140.42,140.38,0.63]
[1763486639493,5.87956892,140.43,140.38,0.63]
[1763486640205,5.87956892,140.44,140.38,6.50956892]
[1763486640708,5.87956892,140.46,140.4,5.87956892]
[1763486640910,5.87956892,140.45,140.41,4.26]
[1763486641290,5.87956892,140.45,140.42,0.63]
[1763486642296,18.12096,140.46,140.42,0.63]
[1763486642491,18.79096,140.46,140.42,0.63]
[1763486643090,18.79096,140.46,140.39,5.87956892]
[1763486643091,5.87956892,140.44,140.39,0.63]
[1763486643291,5.87956892,140.44,140.39,4.89]
[1763486643493,6.54956892,140.44,140.39,4.89]
[1763486643712,5.87956892,140.44,140.4,0.63]
[1763486644107,5.87956892,140.42,140.36,0.1]
[1763486644307,5.87956892,140.4,140.36,0.1]
[1763486644508,5.87956892,140.39,140.36,0.1]
[1763486644814,5.87956892,140.39,140.36,0.73]
[1763486645417,5.87956892,140.39,140.36,0.1]
[1763486646712,0.67,140.38,140.36,0.1]
[1763486647014,5.87956892,140.37,140.36,0.1]
[1763486647898,6.54956892,140.37,140.36,0.1]
[1763486648306,5.87956892,140.37,140.36,0.1]
[1763486648487,0.67,140.39,140.36,0.1]
[1763486648488,5.87956892,140.38,140.36,0.1]
[1763486648688,5.87956892,140.39,140.36,0.73]
[1763486648905,5.87956892,140.38,140.36,0.1]
[1763486649509,24.00052892,140.39,140.36,0.1]
[1763486649905,24.67052892,140.39,140.36,0.1]
[1763486650915,24.00052892,140.39,140.36,0.1]
[1763486651127,5.87956892,140.39,140.36,0.1]
[1763486651304,5.87956892,140.37,140.36,0.1]
[1763486651493,18.12096,140.39,140.36,0.1]
[1763486651701,5.87956892,140.4,140.36,0.73]
[1763486651912,6.54956892,140.4,140.36,0.73]
[1763486652322,5.87956892,140.4,140.36,0.73]
[1763486652598,5.87956892,140.41,140.36,4.99]
[1763486652799,5.87956892,140.4,140.36,4.99]
[1763486653000,5.87956892,140.39,140.36,4.99]
[1763486654215,5.87956892,140.39,140.36,4.36]
[1763486654418,5.87956892,140.39,140.36,4.99]
[1763486654622,5.87956892,140.39,140.36,4.36]
[1763486654924,5.87956892,140.4,140.36,4.99]
[1763486655128,5.87956892,140.4,140.36,4.36]
[1763486655323,0.7,140.4,140.36,4.99]
[1763486655516,6.57956892,140.4,140.36,4.99]
[1763486655829,6.57956892,140.4,140.36,4.36]
[1763486656548,5.87956892,140.38,140.36,0.1]
[1763486656707,5.87956892,140.37,140.36,0.1]
[1763486656905,5.87956892,140.39,140.36,0.73]
[1763486657105,0.7,140.42,140.36,6.60956892]
[1763486657313,6.57956892,140.41,140.36,0.73]
[1763486657709,6.57956892,140.41,140.36,6.60956892]
[1763486657927,0.7,140.41,140.36,10.86956892]
[1763486658125,15.66839661,140.43,140.37,6.50956892]
[1763486658310,18.82096,140.44,140.4,5.87956892]
[1763486658311,0.7,140.44,140.4,5.87956892]
[1763486658630,24.00052892,140.44,140.39,5.87956892]
[1763486658930,4.22554739,140.44,140.39,3.52554739]
[1763486659120,22.34650739,140.44,140.39,4.15554739]
[1763486659828,18.82096,140.44,140.39,4.15554739]
[1763486660921,0.67,140.43,140.36,0.1]
[1763486661243,9.82171436,140.42,140.38,4.26]
[1763486661637,10.49171436,140.42,140.38,4.26]
[1763486662358,10.49171436,140.42,140.37,9.82171436]
[1763486662559,0.67,140.42,140.38,4.26]
[1763486663062,18.79096,140.44,140.39,0.63]
[1763486663274,10.49171436,140.46,140.4,9.82171436]
[1763486663451,10.49171436,140.46,140.4,10.45171436]
[1763486663772,10.49171436,140.45,140.4,10.45171436]
[1763486664693,10.49171436,140.44,140.41,4.26]
[1763486665156,0.67,140.43,140.38,18.12096]
[1763486665340,0.67,140.43,140.39,4.26]
[1763486665962,0.67,140.43,140.38,28.57267436]
[1763486666262,0.67,140.43,140.4,4.26]
[1763486666460,10.49171436,140.43,140.4,4.26]
[1763486666968,9.82171436,140.41,140.39,4.26]
[1763486667264,9.82171436,140.41,140.36,0.1]
[1763486667453,0.67,140.4,140.37,4.26]
[1763486668561,9.82171436,140.41,140.37,4.26]
[1763486668868,0.67,140.4,140.37,4.26]
[1763486669070,9.82171436,140.39,140.36,0.1]
[1763486669280,9.82171436,140.39,140.36,4.36]
[1763486669464,10.49171436,140.4,140.36,4.99]
[1763486669853,10.49171436,140.4,140.36,4.36]
[1763486670580,9.82171436,140.41,140.37,0.63]
[1763486670781,10.49171436,140.42,140.37,0.63]
[1763486671278,27.94267436,140.43,140.37,10.45171436]
[1763486671451,10.48171436,140.46,140.4,9.82171436]
[1763486671652,0.66,140.46,140.41,14.08171436]
[1763486672051,10.48171436,140.46,140.41,14.71171436]
[1763486672271,15.23073794,140.49,140.44,9.82171436]
[1763486672456,10.48171436,140.49,140.45,4.26]
[1763486672901,9.82171436,140.47,140.45,4.26]
[1763486673259,9.82171436,140.48,140.45,4.26]
[1763486673777,9.82171436,140.46,140.43,4.26]
[1763486673976,5.77437448,140.47,140.4,0.63]
[1763486673977,9.82171436,140.45,140.4,0.63]
[1763486674184,9.82171436,140.43,140.36,9.88882769]
[1763486674391,9.82171436,140.41,140.37,0.63]
[1763486674587,9.82171436,140.4,140.37,4.89]
[1763486675585,5.40902358,140.43,140.38,0.63]
[1763486675586,9.82171436,140.41,140.38,0.63]
[1763486675786,9.82171436,140.41,140.37,4.26]
[1763486675990,9.82171436,140.41,140.37,4.89]
[1763486676189,5.40902358,140.43,140.38,0.63]
[1763486676490,9.82171436,140.4,140.37,4.26]
[1763486676661,5.40902358,140.42,140.37,4.26]
[1763486676986,5.88374637,140.45,140.37,4.26]
[1763486676987,9.82171436,140.39,140.37,4.26]
[1763486677293,9.82171436,140.39,140.36,0.1]
[1763486677496,9.82171436,140.39,140.37,4.26]
[1763486677876,9.82171436,140.4,140.37,4.89]
[1763486678770,0.66,140.43,140.37,4.89]
[1763486678771,9.82171436,140.41,140.37,4.89]
[1763486679376,9.82171436,140.4,140.37,4.89]
[1763486680194,9.82171436,140.39,140.36,0.1]
[1763486680367,9.82171436,140.38,140.37,4.26]
[1763486680570,9.82171436,140.39,140.37,4.26]
[1763486681796,0.66,140.4,140.37,4.26]
[1763486681797,10.48171436,140.4,140.37,4.26]
[1763486681986,0.66,140.4,140.37,4.26]
[1763486682298,9.82171436,140.4,140.37,4.26]
[1763486682675,10.49171436,140.4,140.37,4.26]
[1763486682902,15.24073794,140.41,140.37,4.26]
[1763486683062,15.24073794,140.41,140.37,4.89]
[1763486683266,14.57073794,140.41,140.37,4.89]
[1763486683991,9.82171436,140.41,140.37,4.89]
[1763486684213,27.94267436,140.42,140.38,0.63]
[1763486684709,9.82171436,140.43,140.38,0.63]
[1763486684916,5.42660538,140.44,140.39,9.82171436]
[1763486685220,9.82171436,140.42,140.4,4.26]
[1763486685801,9.82171436,140.43,140.4,4.26]
[1763486686109,10.49171436,140.43,140.4,4.26]
[1763486686310,0.67,140.42,140.4,4.26]
[1763486687295,9.82171436,140.43,140.4,4.26]
[1763486687511,10.49171436,140.43,140.4,4.26]
[1763486687711,15.24831974,140.43,140.4,4.26]
[1763486688017,10.49171436,140.43,140.4,4.26]
[1763486688799,0.67,140.42,140.4,4.26]
[1763486689329,0.67,140.42,140.36,0.1]
[1763486689330,9.82171436,140.41,140.36,0.1]
[1763486689527,9.82171436,140.38,140.36,0.1]
[1763486689708,0.67,140.38,140.36,0.1]
[1763486691128,4.75660538,140.39,140.36,0.1]
[1763486691308,28.61267436,140.4,140.36,0.1]
[1763486692003,0.67,140.39,140.36,0.1]
[1763486692403,5.42173627,140.39,140.36,0.1]
[1763486692714,15.24345063,140.39,140.36,0.1]
[1763486693017,27.94267436,140.4,140.36,0.1]
[1763486693218,10.49171436,140.39,140.36,0.1]
[1763486693420,15.24254579,140.39,140.36,0.1]
[1763486693725,10.49171436,140.39,140.36,0.1]
[1763486693928,18.79096,140.4,140.36,0.1]
[1763486694132,27.94267436,140.4,140.36,0.1]
[1763486694315,0.67,140.39,140.36,0.1]
[1763486697927,18.12096,140.41,140.37,10.45171436]
[1763486698113,10.49171436,140.42,140.37,10.45171436]
[1763486698431,0.67,140.41,140.37,10.45171436]
[1763486698933,9.82171436,140.42,140.36,0.1]
[1763486698934,15.24217366,140.43,140.38,10.45171436]
[1763486699103,15.24217366,140.43,140.39,4.26]
[1763486699312,0.67,140.42,140.39,4.26]
[1763486699511,10.49171436,140.42,140.39,4.26]
[1763486699941,10.49171436,140.41,140.39,4.26]
[1763486700447,0.67,140.41,140.38,4.26]
[1763486700754,10.49171436,140.41,140.38,4.26]
[1763486700932,4.19718772,140.41,140.38,4.26]
[1763486701253,10.14374637,140.45,140.36,4.25718772]
[1763486701254,3.52718772,140.39,140.36,0.1]
[1763486701462,4.75408596,140.42,140.36,0.1]
[1763486701760,8.65631708,140.41,140.36,4.25718772]
[1763486701914,8.95127368,140.42,140.37,3.52718772]
[1763486702112,8.95127368,140.42,140.37,4.15718772]
[1763486702317,4.19718772,140.41,140.36,0.1]
[1763486702517,3.52718772,140.4,140.37,4.26]
[1763486702727,0.67,140.39,140.37,4.26]
[1763486703327,3.52718772,140.4,140.37,4.26]
[1763486703525,4.19718772,140.4,140.37,4.26]
[1763486704445,0.67,140.4,140.37,4.26]
[1763486704857,0.67,140.4,140.36,0.1]
[1763486705026,4.19718772,140.4,140.36,0.1]
[1763486705759,4.7567313,140.42,140.37,0.63]
[1763486705923,5.13181141,140.41,140.37,0.63]
[1763486706118,5.80181141,140.41,140.37,0.63]
[1763486706344,8.65899913,140.41,140.36,3.62718772]
[1763486706549,4.7567313,140.42,140.38,3.52718772]
[1763486706931,4.7567313,140.42,140.37,4.26]
[1763486706932,0.67,140.41,140.37,4.26]
[1763486707248,8.28391902,140.42,140.37,7.78718772]
[1763486707440,5.4267313,140.42,140.38,0.63]
[1763486707744,13.31601541,140.4,140.36,0.1]
[1763486707944,3.52718772,140.37,140.36,0.1]
[1763486708465,4.19718772,140.37,140.36,0.1]
[1763486708953,15.25794186,140.37,140.36,0.1]
[1763486709123,0.67,140.4,140.36,0.73]
[1763486709325,10.50393918,140.39,140.36,0.1]
[1763486709728,9.83393918,140.37,140.36,0.1]
[1763486709949,10.50393918,140.37,140.36,0.1]
[1763486710432,0.67,140.37,140.36,0.1]
[1763486710749,25.048963,140.37,140.36,0.1]
[1763486710947,30.17686137,140.37,140.36,0.1]
[1763486713342,36.12277549,140.37,140.36,0.1]
[1763486713552,30.17686137,140.37,140.36,0.1]
[1763486713748,9.78882769,140.36,140.35,1.93593088]
[1763486713945,34.42686137,140.36,140.35,1.93593088]
[1763486720773,30.47976285,140.36,140.35,1.93593088]
[1763486722248,20.59566835,140.36,140.35,1.93593088]
[1763486723470,38.71662835,140.36,140.35,1.93593088]
[1763486723648,20.59566835,140.36,140.35,1.93593088]
[1763486723967,38.71662835,140.36,140.35,1.93593088]
[1763486725342,48.55209675,140.36,140.35,1.93593088]
[1763486725557,30.43113675,140.36,140.35,1.93593088]
[1763486726155,20.59566835,140.36,140.35,1.93593088]
[1763486726967,30.4265463,140.36,140.35,1.93593088]
[1763486727946,20.59566835,140.36,140.35,1.93593088]
[1763486728146,32.16978769,140.36,140.35,1.93593088]
[1763486728355,0.69,140.39,140.35,1.93593088]
[1763486728654,5.94591412,140.42,140.36,6.51684066]
[1763486728655,3.54806151,140.42,140.36,6.51684066]
[1763486728855,2.25731224,140.4,140.36,0.63]
[1763486729067,2.25731224,140.41,140.37,0.63]
[1763486729244,20.37827224,140.41,140.37,0.63]
[1763486729645,2.25731224,140.4,140.36,0.63]
[1763486729862,2.25731224,140.42,140.37,2.88731224]
[1763486730075,2.25731224,140.42,140.38,0.63]
[1763486730076,18.12096,140.41,140.38,0.63]
[1763486730249,2.25731224,140.42,140.38,0.63]
[1763486730591,2.25731224,140.44,140.39,2.25731224]
[1763486730877,2.25731224,140.44,140.4,0.63]
[1763486731189,2.25731224,140.41,140.35,1.93593088]
[1763486731368,2.25731224,140.39,140.35,1.93593088]
[1763486731682,20.37827224,140.39,140.35,2.56593088]
[1763486731972,20.37827224,140.39,140.35,1.93593088]
[1763486732175,2.25731224,140.38,140.35,2.56593088]
[1763486732988,5.88226097,140.36,140.35,1.93593088]
[1763486733346,0.69,140.38,140.35,1.93593088]
[1763486733546,5.88226097,140.36,140.35,1.93593088]
[1763486734865,5.88226097,140.37,140.35,2.56593088]
[1763486735550,5.88226097,140.37,140.35,1.93593088]
[1763486736062,18.81096,140.39,140.35,1.93593088]
[1763486736063,5.88226097,140.36,140.35,1.93593088]
[1763486736677,18.12096,140.39,140.35,2.56593088]
[1763486736880,5.88226097,140.36,140.35,1.93593088]
[1763486737771,5.88226097,140.36,140.35,2.56593088]
[1763486737979,5.88226097,140.37,140.35,2.56593088]
[1763486738358,18.12096,140.39,140.36,0.63]
[1763486738772,5.88226097,140.4,140.36,0.63]
[1763486739088,6.57226097,140.4,140.36,0.63]
[1763486739382,5.88226097,140.38,140.35,1.93593088]
[1763486739750,5.88226097,140.38,140.35,2.56593088]
[1763486740381,5.88226097,140.37,140.35,1.93593088]
[1763486740759,5.88226097,140.36,140.35,1.93593088]
[1763486743368,6.57226097,140.36,140.35,1.93593088]
[1763486744477,11.65415821,140.36,140.35,1.93593088]
[1763486744669,26.17431279,140.36,140.35,1.93593088]
[1763486745079,26.17430366,140.36,140.35,1.93593088]
[1763486748268,27.90978769,140.32,140.3,0.1]
[1763486748471,5.88226097,140.31,140.3,0.1]
[1763486748682,6.57226097,140.31,140.3,0.1]
[1763486748886,5.88226097,140.31,140.3,0.1]
[1763486749799,16.36108866,140.31,140.3,0.1]
[1763486749966,30.41456014,140.31,140.3,0.1]
[1763486750899,24.00322097,140.31,140.3,0.1]
[1763486751204,24.69322097,140.31,140.3,0.1]
[1763486751391,28.26322097,140.31,140.3,0.1]
[1763486751805,24.00322097,140.31,140.3,0.1]
[1763486752013,24.69322097,140.31,140.3,0.1]
[1763486752872,21.07245818,140.31,140.3,0.1]
[1763486753806,35.12128587,140.31,140.3,0.1]
[1763486754912,38.74955607,140.31,140.3,0.1]
[1763486757295,43.82270161,140.31,140.3,0.1]
[1763486757500,48.55059761,140.31,140.3,0.1]
[1763486758181,43.47745207,140.31,140.3,0.1]
[1763486759116,32.85978769,140.31,140.3,0.1]
[1763486759307,38.74955607,140.31,140.3,0.1]
[1763486759513,30.42455062,140.31,140.3,0.1]
[1763486759702,38.74955607,140.31,140.3,0.1]
[1763486759905,30.42444412,140.31,140.3,0.1]
[1763486760407,33.28454922,140.31,140.3,0.1]
[1763486760613,30.42444412,140.31,140.3,0.1]
[1763486761722,20.62859607,140.31,140.3,0.1]
[1763486762095,14.73882769,140.31,140.3,0.1]
[1763486762599,25.71944981,140.31,140.3,0.1]
[1763486762916,20.62859607,140.31,140.3,0.1]